Workbook

Sheet Primary Spectacle Match
A1: Spectacle Match
O2: M-t | P2: h | Q2: k | V2: M-c | W2: x | X2: y | AC2: a | AD2: A | AE2: B | AF2: C
C4: Target Refraction | G4: Candidate Refraction | J4: Interpupillary distance | AD4: quadratic | AH4: Cylinder | AJ4: Spherical Equivalent | AL4: Pupillary Distance
A5: Patient | B5: Age | C5: Sphere-target | D5: Cyl-target | E5: Axis-target | F5: PD-target | G5: Sphere-cand | H5: Cyl-cand | I5: Axis-cand | J5: PD-cand | K5: Sphere-t-adj | L5: Cyl-t-adj | M5: axis-t-adj | O5: M-target | P5: J0-target | Q5: J45-target | R5: Sphere-c-adj | S5: Cyl-c-adj | T5: AXIS-c-adj | V5: M-candidate | W5: J0-candidate | X5: J45-candidate | Z5: excess accom | AA5: age accom | AB5: age-adj | AC5: major radius | AD5: A | AE5: B | AF5: C | AH5: #-cyl | AI5: Grade cyl | AJ5: #-Sph | AK5: Grade Sph | AL5: #-PD | AM5: Grade PD
A6: example 1 | B6: 5 | C6: -2.50 | D6: 1.50 | E6: 95 | F6: 60 | G6: -3 | H6: 2.25 | I6: 102 | J6: 65 | K6: =C6 -> -2.50 | L6: =D6 -> 1.50 | M6: 45 | O6: =K6+(L6/2) -> -1.75 | P6: =-((L6+0.000001)/2)*(COS(2*M6*3.1416/180)) -> 0.00 | Q6: =-((0.000001+L6)/2)*(SIN(2*M6*3.1416/180)) -> -0.75 | R6: =G6 -> -3 | S6: =H6 -> 2.25 | T6: =I6+(45-E6) -> 52 | V6: =R6+(S6/2) -> -1.875 | W6: =-((S6+0.000001)/2)*(COS(2*T6*3.1416/180)) -> 0.27 | X6: =-((0.000001+S6)/2)*(SIN(2*T6*3.1416/180)) -> -1.09 | Z6: =-1*(O6-V6) -> -0.13 | AA6: =5.25*2.7183^(-0.05*B6) -> 4.09 | AB6: =IF(B6>70,70,B6) -> 5 | AC6: =SQRT((0.39*(W6-P6)^2+(X6-Q6)^2)/0.39) -> 0.61 | AD6: =-0.034*L6-0.052 -> -0.10 | AE6: =0.26*L6+0.45 -> 0.84 | AF6: =-2*AC6 -> -1.22 | AH6: =(-AE6+SQRT(AE6^2-4*AD6*AF6))/(2*AD6) -> 1.89 | AI6: =IF(AH6<1.01,"A",IF(AH6<2.01,"B",IF(AH6<3.01,"C","poor match"))) -> B | AJ6: =IF(Z6>0,2*Z6,(-1*Z6/(1.7-0.017*AB6))) -> 0.08 | AK6: =IF(AJ6<1.01,"A",IF(AJ6<2.01,"B",IF(AJ6<3.01,"C","poor match"))) -> A | AL6: =(ABS(F6-J6))/(4.165*2.7183^(-0.1*O6)) -> 1.0 | AM6: =IF(AL6<1.01,"A",IF(AL6<2.01,"B",IF(AL6<3.01,"C","poor match"))) -> A
A7: example 2 | B7: 72 | C7: -2.5 | D7: 1.5 | E7: 95 | F7: 60 | G7: -1.5 | H7: 1 | I7: 102 | J7: 64 | K7: =C7 -> -2.50 | L7: =D7 -> 1.50 | M7: 45 | O7: =K7+(L7/2) -> -1.75 | P7: =-((L7+0.000001)/2)*(COS(2*M7*3.1416/180)) -> 0.00 | Q7: =-((0.000001+L7)/2)*(SIN(2*M7*3.1416/180)) -> -0.75 | R7: =G7 -> -1.5 | S7: =H7 -> 1 | T7: =I7+(45-E7) -> 52 | V7: =R7+(S7/2) -> -1 | W7: =-((S7+0.000001)/2)*(COS(2*T7*3.1416/180)) -> 0.12 | X7: =-((0.000001+S7)/2)*(SIN(2*T7*3.1416/180)) -> -0.49 | Z7: =-1*(O7-V7) -> 0.75 | AA7: =5.25*2.7183^(-0.05*B7) -> 0.14 | AB7: =IF(B7>70,70,B7) -> 70 | AC7: =SQRT((0.39*(W7-P7)^2+(X7-Q7)^2)/0.39) -> 0.44 | AD7: =-0.034*L7-0.052 -> -0.10 | AE7: =0.26*L7+0.45 -> 0.84 | AF7: =-2*AC7 -> -0.88 | AH7: =(-AE7+SQRT(AE7^2-4*AD7*AF7))/(2*AD7) -> 1.24 | AI7: =IF(AH7<1.01,"A",IF(AH7<2.01,"B",IF(AH7<3.01,"C","poor match"))) -> B | AJ7: =IF(Z7>0,2*Z7,(-1*Z7/(1.7-0.017*AB7))) -> 1.50 | AK7: =IF(AJ7<1.01,"A",IF(AJ7<2.01,"B",IF(AJ7<3.01,"C","poor match"))) -> B | AL7: =(ABS(F7-J7))/(4.165*2.7183^(-0.1*O7)) -> 0.8 | AM7: =IF(AL7<1.01,"A",IF(AL7<2.01,"B",IF(AL7<3.01,"C","poor match"))) -> A
A8: example 3 | B8: 75 | C8: -2 | D8: 1 | E8: 95 | F8: 60 | G8: -3 | H8: 1.5 | I8: 98 | J8: 64 | K8: -2.00 | L8: 1.00 | M8: 45 | O8: -1.5 | P8: 0.00 | Q8: -0.50 | R8: -3 | S8: 1.5 | T8: 48 | V8: -2.25 | W8: 0.08 | X8: -0.75 | Z8: -0.75 | AA8: 0.12 | AB8: 70 | AC8: 0.40 | AD8: -0.09 | AE8: 0.71 | AF8: -0.80 | AH8: =(-AE8+SQRT(AE8^2-4*AD8*AF8))/(2*AD8) -> 1.35 | AI8: =IF(AH8<1.01,"A",IF(AH8<2.01,"B",IF(AH8<3.01,"C","poor match"))) -> B | AJ8: 1.47 | AK8: B | AL8: 0.8 | AM8: A
A9: example 4 | B9: 45 | C9: -1 | D9: 2.5 | E9: 95 | F9: 60 | G9: -2.5 | H9: 2.25 | I9: 102 | J9: 70 | K9: -1.00 | L9: 2.50 | M9: 45 | O9: 0.25 | P9: 0.00 | Q9: -1.25 | R9: -2.5 | S9: =H9 -> 2.25 | T9: 52 | V9: -1.375 | W9: 0.27 | X9: -1.09 | Z9: -1.63 | AA9: 0.55 | AB9: 45 | AC9: 0.37 | AD9: -0.14 | AE9: 1.10 | AF9: -0.74 | AH9: 0.75 | AI9: A | AJ9: 1.74 | AK9: B | AL9: 2.5 | AM9: C
Z10: 0.00
A11: entry here--> | K11: 0.00 | L11: 0.00 | M11: 45 | O11: 0 | P11: 0.00 | Q11: -0.00 | R11: 0 | S11: 0 | T11: 45 | V11: 0 | W11: 0.00 | X11: -0.00 | Z11: 0.00 | AA11: 5.25 | AB11: 0 | AC11: 0.00 | AD11: -0.05 | AE11: 0.45 | AF11: 0.00 | AH11: 0.00 | AI11: A | AJ11: 0.00 | AK11: A | AL11: 0.0 | AM11: A
A12: fill in --> | K12: =C12 -> 0.00 | L12: =D12 -> 0.00 | M12: 45 | O12: =K12+(L12/2) -> 0 | P12: =-((L12+0.000001)/2)*(COS(2*M12*3.1416/180)) -> 0.00 | Q12: =-((0.000001+L12)/2)*(SIN(2*M12*3.1416/180)) -> -0.00 | R12: =G12 -> 0 | S12: =H12 -> 0 | T12: =I12+(45-E12) -> 45 | V12: =R12+(S12/2) -> 0 | W12: =-((S12+0.000001)/2)*(COS(2*T12*3.1416/180)) -> 0.00 | X12: =-((0.000001+S12)/2)*(SIN(2*T12*3.1416/180)) -> -0.00 | Z12: 0.00 | AA12: =5.25*2.7183^(-0.05*B12) -> 5.25 | AB12: 0 | AC12: =SQRT((0.39*(W12-P12)^2+(X12-Q12)^2)/0.39) -> 0.00 | AD12: =-0.034*L12-0.052 -> -0.05 | AE12: =0.26*L12+0.45 -> 0.45 | AF12: =-2*AC12 -> 0.00 | AH12: =(-AE12+SQRT(AE12^2-4*AD12*AF12))/(2*AD12) -> 0.00 | AI12: =IF(AH12<1.01,"A",IF(AH12<2.01,"B",IF(AH12<3.01,"C","poor match"))) -> A | AJ12: 0.00 | AK12: =IF(AJ12<1.01,"A",IF(AJ12<2.01,"B",IF(AJ12<3.01,"C","poor match"))) -> A | AL12: =(ABS(F12-J12))/(4.165*2.7183^(-0.1*O12)) -> 0.0 | AM12: =IF(AL12<1.01,"A",IF(AL12<2.01,"B",IF(AL12<3.01,"C","poor match"))) -> A
K13: 0.00 | L13: 0.00 | M13: 45 | O13: 0 | P13: 0.00 | Q13: -0.00 | R13: 0 | S13: 0 | T13: 45 | V13: 0 | W13: 0.00 | X13: -0.00 | Z13: 0.00 | AA13: 5.25 | AB13: 0 | AC13: 0.00 | AD13: -0.05 | AE13: 0.45 | AF13: 0.00 | AH13: 0.00 | AI13: A | AJ13: 0.00 | AK13: A | AL13: 0.0 | AM13: A
